[Event "*** SCC Grand Prix: Titled Tuesday Blitz"]
[Site "Chess.com"]
[Date "2020.06.02"]
[Round "8"]
[White "MacDaddyMac"]
[Black "Baron_von_Koenig"]
[Result "0-1"]
[WhiteElo "2275"]
[BlackElo "2434"]
[TimeControl "180+1"]
[EndTime "11:36:46 PDT"]
[Termination "Baron_von_Koenig won on time"]

1. e4 {[%clk 0:03:00.9]} 1... d5 {[%clk 0:02:58.5]} 2. exd5 {[%clk 0:03:00.6]}
2... Qxd5 {[%clk 0:02:58.8]} 3. Nc3 {[%clk 0:03:00.8]} 3... Qd6 {[%clk
0:02:59.1]} 4. g3 {[%clk 0:02:58.6]} 4... Nf6 {[%clk 0:02:59.3]} 5. Bg2 {[%clk
0:02:58.9]} 5... Nc6 {[%clk 0:02:59.6]} 6. Nge2 {[%clk 0:02:59.2]} 6... Bf5
{[%clk 0:02:58]} 7. d3 {[%clk 0:02:59.3]} 7... O-O-O {[%clk 0:02:57.4]} 8. Bf4
{[%clk 0:02:59.5]} 8... Qd7 {[%clk 0:02:56.8]} 9. O-O {[%clk 0:02:58.5]} 9...
Bh3 {[%clk 0:02:55.1]} 10. a4 {[%clk 0:02:56.1]} 10... a6 {[%clk 0:02:49.8]} 11.
Rb1 {[%clk 0:02:53.8]} 11... e5 {[%clk 0:02:47.2]} 12. Bg5 {[%clk 0:02:53.2]}
12... h6 {[%clk 0:02:46]} 13. Bxf6 {[%clk 0:02:52.9]} 13... gxf6 {[%clk
0:02:46.9]} 14. f4 {[%clk 0:02:49.2]} 14... h5 {[%clk 0:02:43.8]} 15. Ne4 {[%clk
0:02:33.3]} 15... Be7 {[%clk 0:02:37.3]} 16. fxe5 {[%clk 0:02:24.6]} 16... fxe5
{[%clk 0:02:32.3]} 17. Rxf7 {[%clk 0:02:23.2]} 17... h4 {[%clk 0:02:27.3]} 18.
Qf1 {[%clk 0:02:13.6]} 18... hxg3 {[%clk 0:02:25.8]} 19. N2xg3 {[%clk
0:02:09.9]} 19... Bxg2 {[%clk 0:02:17.1]} 20. Qxg2 {[%clk 0:02:01.9]} 20... Bc5+
{[%clk 0:02:16.6]} 21. Nxc5 {[%clk 0:02:01.8]} 21... Qxf7 {[%clk 0:02:16.4]} 22.
b4 {[%clk 0:02:01.2]} 22... Qe7 {[%clk 0:02:01.2]} 23. Nxa6 {[%clk 0:01:44.9]}
23... Qd6 {[%clk 0:01:52.4]} 24. b5 {[%clk 0:01:18.4]} 24... Na5 {[%clk
0:01:43.9]} 25. Nf5 {[%clk 0:00:47.8]} 25... Qb6+ {[%clk 0:01:14.3]} 26. Kh1
{[%clk 0:00:43.8]} 26... Rd7 {[%clk 0:00:44.7]} 27. Nb4 {[%clk 0:00:22.2]} 27...
Rdh7 {[%clk 0:00:44]} 28. Nd5 {[%clk 0:00:18.1]} 28... Rxh2+ {[%clk 0:00:43.4]}
29. Qxh2 {[%clk 0:00:17.6]} 29... Rxh2+ {[%clk 0:00:43.8]} 30. Kxh2 {[%clk
0:00:18.5]} 30... Qf2+ {[%clk 0:00:42.7]} 31. Kh1 {[%clk 0:00:17.2]} 31... c6
{[%clk 0:00:37.4]} 32. Nde7+ {[%clk 0:00:16.5]} 32... Kd7 {[%clk 0:00:36.9]} 33.
bxc6+ {[%clk 0:00:16.7]} 33... bxc6 {[%clk 0:00:36.9]} 34. c4 {[%clk 0:00:15.2]}
34... Qc2 {[%clk 0:00:32.5]} 35. Re1 {[%clk 0:00:12.2]} 35... Qxd3 {[%clk
0:00:28.8]} 36. Rxe5 {[%clk 0:00:11.4]} 36... Nxc4 {[%clk 0:00:28.8]} 37. Re1
{[%clk 0:00:08.1]} 37... Nd6 {[%clk 0:00:26.8]} 38. Nxd6 {[%clk 0:00:06.8]}
38... Qxd6 {[%clk 0:00:26.2]} 39. a5 {[%clk 0:00:04.7]} 39... Qd2 {[%clk
0:00:24.2]} 40. Ra1 {[%clk 0:00:01.7]} 40... Kxe7 {[%clk 0:00:20.1]} 41. a6
{[%clk 0:00:01.9]} 41... Qh6+ {[%clk 0:00:20.4]} 0-1

[Event "*** SCC Grand Prix: Titled Tuesday Blitz"]
[Site "Chess.com"]
[Date "2020.06.02"]
[Round "8"]
[White "PauloFanha"]
[Black "BelaKis"]
[Result "0-1"]
[WhiteElo "1967"]
[BlackElo "2204"]
[TimeControl "180+1"]
[EndTime "11:36:47 PDT"]
[Termination "BelaKis won by checkmate"]

1. e4 {[%clk 0:03:00.9]} 1... e5 {[%clk 0:02:53.7]} 2. Bc4 {[%clk 0:02:59.7]}
2... Nc6 {[%clk 0:02:49.3]} 3. Nf3 {[%clk 0:02:57.8]} 3... Nf6 {[%clk
0:02:48.7]} 4. d4 {[%clk 0:02:54.6]} 4... exd4 {[%clk 0:02:38.9]} 5. O-O {[%clk
0:02:52.4]} 5... Be7 {[%clk 0:02:25.2]} 6. Re1 {[%clk 0:02:39.7]} 6... d6 {[%clk
0:02:18.8]} 7. Nxd4 {[%clk 0:02:38.2]} 7... O-O {[%clk 0:02:02.1]} 8. Nc3 {[%clk
0:02:27.9]} 8... Nxd4 {[%clk 0:01:53.5]} 9. Qxd4 {[%clk 0:02:26.9]} 9... a6
{[%clk 0:01:53.6]} 10. h3 {[%clk 0:02:21.8]} 10... b5 {[%clk 0:01:40.6]} 11. Bd3
{[%clk 0:02:16.5]} 11... c5 {[%clk 0:01:32.3]} 12. Qe3 {[%clk 0:02:15.3]} 12...
Bb7 {[%clk 0:01:09.7]} 13. Nd5 {[%clk 0:02:02.1]} 13... Nxd5 {[%clk 0:01:06.6]}
14. exd5 {[%clk 0:02:00.4]} 14... Bf6 {[%clk 0:01:06.8]} 15. Qe4 {[%clk
0:01:50]} 15... g6 {[%clk 0:01:05.1]} 16. Bh6 {[%clk 0:01:48.8]} 16... Re8
{[%clk 0:01:05.3]} 17. Qf3 {[%clk 0:01:41.1]} 17... Bxb2 {[%clk 0:01:00.7]} 18.
Rab1 {[%clk 0:01:36.7]} 18... Bg7 {[%clk 0:00:57.6]} 19. Bxg7 {[%clk 0:01:27.7]}
19... Kxg7 {[%clk 0:00:58.5]} 20. Kf1 {[%clk 0:01:15.6]} 20... Qf6 {[%clk
0:00:57.8]} 21. Qxf6+ {[%clk 0:01:09]} 21... Kxf6 {[%clk 0:00:58.7]} 22. Be4
{[%clk 0:01:08.6]} 22... Re7 {[%clk 0:00:43.6]} 23. Bf3 {[%clk 0:01:06]} 23...
Rae8 {[%clk 0:00:42]} 24. Rxe7 {[%clk 0:01:03.2]} 24... Rxe7 {[%clk 0:00:42.1]}
25. a4 {[%clk 0:00:59.9]} 25... b4 {[%clk 0:00:39.2]} 26. Re1 {[%clk 0:00:40.3]}
26... Rxe1+ {[%clk 0:00:37.7]} 27. Kxe1 {[%clk 0:00:40.5]} 27... Ke5 {[%clk
0:00:37.9]} 28. Be2 {[%clk 0:00:33.1]} 28... a5 {[%clk 0:00:36.4]} 29. Kd2
{[%clk 0:00:29]} 29... Bxd5 {[%clk 0:00:35.3]} 30. g3 {[%clk 0:00:28.3]} 30...
Kd4 {[%clk 0:00:34.9]} 31. Bb5 {[%clk 0:00:24.2]} 31... c4 {[%clk 0:00:34.6]}
32. h4 {[%clk 0:00:22]} 32... h6 {[%clk 0:00:34.2]} 33. Be8 {[%clk 0:00:20.1]}
33... g5 {[%clk 0:00:33.5]} 34. hxg5 {[%clk 0:00:18.5]} 34... hxg5 {[%clk
0:00:34.4]} 35. Bd7 {[%clk 0:00:15.5]} 35... f6 {[%clk 0:00:34.2]} 36. Bf5
{[%clk 0:00:14.7]} 36... Bc6 {[%clk 0:00:33.9]} 37. Bg6 {[%clk 0:00:13.5]} 37...
Bxa4 {[%clk 0:00:33.9]} 38. Bf7 {[%clk 0:00:12.9]} 38... Bc6 {[%clk 0:00:34]}
39. Be6 {[%clk 0:00:11.7]} 39... a4 {[%clk 0:00:33.4]} 40. Kc1 {[%clk
0:00:11.8]} 40... a3 {[%clk 0:00:33.7]} 41. Kb1 {[%clk 0:00:11.4]} 41... Bf3
{[%clk 0:00:31.3]} 42. Bf5 {[%clk 0:00:10.3]} 42... d5 {[%clk 0:00:31.3]} 43.
Bg6 {[%clk 0:00:09.3]} 43... Kc3 {[%clk 0:00:31.4]} 44. Bf5 {[%clk 0:00:08.7]}
44... b3 {[%clk 0:00:31.6]} 45. cxb3 {[%clk 0:00:08.5]} 45... cxb3 {[%clk
0:00:32.5]} 46. Ka1 {[%clk 0:00:07.2]} 46... d4 {[%clk 0:00:32.9]} 47. Kb1
{[%clk 0:00:06]} 47... d3 {[%clk 0:00:33.2]} 48. Kc1 {[%clk 0:00:05.3]} 48... a2
{[%clk 0:00:32.9]} 49. Bxd3 {[%clk 0:00:04]} 49... b2# {[%clk 0:00:30.5]} 0-1

[Event "*** SCC Grand Prix: Titled Tuesday Blitz"]
[Site "Chess.com"]
[Date "2020.06.02"]
[Round "8"]
[White "stolencandy13"]
[Black "AnthonyWirig"]
[Result "0-1"]
[WhiteElo "2572"]
[BlackElo "2710"]
[TimeControl "180+1"]
[EndTime "11:36:48 PDT"]
[Termination "AnthonyWirig won by resignation"]

1. e4 {[%clk 0:03:00.9]} 1... c5 {[%clk 0:02:59.6]} 2. Nf3 {[%clk 0:03:00.6]}
2... e6 {[%clk 0:02:59.6]} 3. d4 {[%clk 0:03:01.1]} 3... cxd4 {[%clk 0:03:00.5]}
4. Nxd4 {[%clk 0:03:02]} 4... Nf6 {[%clk 0:03:00.8]} 5. Nc3 {[%clk 0:03:00]}
5... Nc6 {[%clk 0:03:00.2]} 6. Ndb5 {[%clk 0:02:53.1]} 6... Bc5 {[%clk
0:02:59.6]} 7. Nd6+ {[%clk 0:02:51.2]} 7... Ke7 {[%clk 0:02:59.2]} 8. Bf4 {[%clk
0:02:15.1]} 8... e5 {[%clk 0:02:58.4]} 9. Nf5+ {[%clk 0:02:12.4]} 9... Kf8
{[%clk 0:02:57.2]} 10. Bg5 {[%clk 0:02:10.8]} 10... d6 {[%clk 0:02:54.2]} 11.
Ne3 {[%clk 0:02:06.4]} 11... h6 {[%clk 0:02:52.4]} 12. Bxf6 {[%clk 0:01:58]}
12... Qxf6 {[%clk 0:02:53.3]} 13. Ncd5 {[%clk 0:01:58.7]} 13... Qh4 {[%clk
0:02:43.7]} 14. Qd3 {[%clk 0:01:19.4]} 14... g6 {[%clk 0:02:39]} 15. g3 {[%clk
0:01:17.6]} 15... Qd8 {[%clk 0:02:36.4]} 16. c3 {[%clk 0:01:16.7]} 16... Kg7
{[%clk 0:02:34.8]} 17. Bg2 {[%clk 0:01:15.4]} 17... a5 {[%clk 0:02:33.5]} 18. a4
{[%clk 0:01:12.4]} 18... Be6 {[%clk 0:02:31.8]} 19. O-O {[%clk 0:01:12.2]} 19...
Ne7 {[%clk 0:02:28.1]} 20. Rad1 {[%clk 0:01:08.3]} 20... Nxd5 {[%clk 0:02:20.7]}
21. Nxd5 {[%clk 0:01:07.9]} 21... h5 {[%clk 0:02:07.1]} 22. Kh1 {[%clk
0:01:06.6]} 22... h4 {[%clk 0:01:59.6]} 23. Ne3 {[%clk 0:00:26.7]} 23... hxg3
{[%clk 0:01:32]} 24. fxg3 {[%clk 0:00:26.1]} 24... Qg5 {[%clk 0:01:18.3]} 25.
Rf3 {[%clk 0:00:18.6]} 25... Qh5 {[%clk 0:00:54.8]} 26. h4 {[%clk 0:00:16.9]}
26... Bxe3 {[%clk 0:00:35]} 27. Qxe3 {[%clk 0:00:16.6]} 27... Bg4 {[%clk
0:00:29.7]} 28. Rxd6 {[%clk 0:00:14.1]} 28... Bxf3 {[%clk 0:00:29]} 29. Bxf3
{[%clk 0:00:14.5]} 29... Qh6 {[%clk 0:00:26.7]} 30. Qc5 {[%clk 0:00:14.5]} 30...
Rhe8 {[%clk 0:00:21.7]} 31. Rd7 {[%clk 0:00:14.3]} 31... Qc1+ {[%clk 0:00:19.6]}
32. Kg2 {[%clk 0:00:14]} 32... Qxb2+ {[%clk 0:00:19.1]} 33. Kh3 {[%clk
0:00:14.4]} 33... Qb3 {[%clk 0:00:18.2]} 34. Qc7 {[%clk 0:00:13.2]} 34... Rac8
{[%clk 0:00:16.6]} 35. Qd6 {[%clk 0:00:11.3]} 35... Qe6+ {[%clk 0:00:14.9]} 36.
Qxe6 {[%clk 0:00:07.8]} 36... Rxe6 {[%clk 0:00:15]} 37. Rxb7 {[%clk 0:00:08.7]}
37... Rxc3 {[%clk 0:00:14.5]} 38. Bg4 {[%clk 0:00:09.2]} 38... Rd6 {[%clk
0:00:14]} 39. Rb5 {[%clk 0:00:08.8]} 39... Rdd3 {[%clk 0:00:13.8]} 40. Be2
{[%clk 0:00:08.9]} 40... Rxg3+ {[%clk 0:00:13.1]} 41. Kh2 {[%clk 0:00:09.5]}
41... Rge3 {[%clk 0:00:12.2]} 42. Bf1 {[%clk 0:00:09.6]} 42... Rc2+ {[%clk
0:00:12.2]} 43. Kg1 {[%clk 0:00:09.9]} 43... Re1 {[%clk 0:00:12.3]} 44. Rxe5
{[%clk 0:00:08.1]} 44... Rcc1 {[%clk 0:00:12.5]} 0-1

[Event "*** SCC Grand Prix: Titled Tuesday Blitz"]
[Site "Chess.com"]
[Date "2020.06.02"]
[Round "8"]
[White "elegant285"]
[Black "Semetey"]
[Result "0-1"]
[WhiteElo "2382"]
[BlackElo "2544"]
[TimeControl "180+1"]
[EndTime "11:36:48 PDT"]
[Termination "Semetey won by resignation"]

1. d4 {[%clk 0:02:58.3]} 1... Nf6 {[%clk 0:02:59.6]} 2. c4 {[%clk 0:02:58]} 2...
e6 {[%clk 0:03:00]} 3. Nf3 {[%clk 0:02:57.9]} 3... b6 {[%clk 0:02:58.3]} 4. a3
{[%clk 0:02:56.8]} 4... Bb7 {[%clk 0:02:55]} 5. Nc3 {[%clk 0:02:57]} 5... d5
{[%clk 0:02:55.1]} 6. cxd5 {[%clk 0:02:57.2]} 6... Nxd5 {[%clk 0:02:54.9]} 7.
Qc2 {[%clk 0:02:56.2]} 7... Nd7 {[%clk 0:02:52.4]} 8. e4 {[%clk 0:02:51.2]} 8...
Nxc3 {[%clk 0:02:52.4]} 9. bxc3 {[%clk 0:02:51.5]} 9... Be7 {[%clk 0:02:50.4]}
10. Bd3 {[%clk 0:02:50.7]} 10... c5 {[%clk 0:02:49]} 11. O-O {[%clk 0:02:47.8]}
11... Rc8 {[%clk 0:02:45.2]} 12. Qe2 {[%clk 0:02:47.4]} 12... O-O {[%clk
0:02:43.1]} 13. Rd1 {[%clk 0:02:39.8]} 13... cxd4 {[%clk 0:02:40.8]} 14. cxd4
{[%clk 0:02:39.7]} 14... Nf6 {[%clk 0:02:40.8]} 15. Bb2 {[%clk 0:02:36.5]} 15...
g6 {[%clk 0:02:23.3]} 16. a4 {[%clk 0:02:06.9]} 16... Bb4 {[%clk 0:02:01.9]} 17.
d5 {[%clk 0:01:45]} 17... exd5 {[%clk 0:02:01]} 18. e5 {[%clk 0:01:45.3]} 18...
Nh5 {[%clk 0:01:58.9]} 19. e6 {[%clk 0:01:39.6]} 19... f6 {[%clk 0:01:46.9]} 20.
Nd4 {[%clk 0:01:31.5]} 20... Re8 {[%clk 0:01:43.7]} 21. Qg4 {[%clk 0:01:25.6]}
21... Ng7 {[%clk 0:01:31.4]} 22. Rac1 {[%clk 0:01:15.2]} 22... Qe7 {[%clk
0:01:28.3]} 23. h4 {[%clk 0:00:52]} 23... Bc5 {[%clk 0:01:22.1]} 24. Bb5 {[%clk
0:00:48.6]} 24... Bxd4 {[%clk 0:01:18.4]} 25. Qxd4 {[%clk 0:00:46.8]} 25... Nxe6
{[%clk 0:01:16.1]} 26. Qxf6 {[%clk 0:00:39.7]} 26... Qxf6 {[%clk 0:01:16.1]} 27.
Bxf6 {[%clk 0:00:40.3]} 27... Rxc1 {[%clk 0:01:08.6]} 28. Rxc1 {[%clk
0:00:38.7]} 28... Rf8 {[%clk 0:01:05.5]} 29. Be5 {[%clk 0:00:34.4]} 29... Nc5
{[%clk 0:01:03.7]} 30. Bd6 {[%clk 0:00:26.7]} 30... Rc8 {[%clk 0:01:02.8]} 31.
Re1 {[%clk 0:00:23]} 31... Ne4 {[%clk 0:01:00]} 32. Bb4 {[%clk 0:00:20.3]} 32...
a6 {[%clk 0:01:00]} 33. Bd7 {[%clk 0:00:19.8]} 33... Rc4 {[%clk 0:00:58.6]} 34.
Be6+ {[%clk 0:00:19.8]} 34... Kg7 {[%clk 0:00:58.2]} 35. Ba3 {[%clk 0:00:19.3]}
35... Rxa4 {[%clk 0:00:52.4]} 36. Bb2+ {[%clk 0:00:19.8]} 36... Kf8 {[%clk
0:00:52.3]} 37. Rd1 {[%clk 0:00:18]} 37... Ra2 {[%clk 0:00:47.3]} 38. Be5 {[%clk
0:00:15.5]} 38... Ke7 {[%clk 0:00:37.4]} 39. Bxd5 {[%clk 0:00:15.4]} 39... Bxd5
{[%clk 0:00:37.1]} 40. Rxd5 {[%clk 0:00:16.1]} 40... Nxf2 {[%clk 0:00:35.6]} 41.
Bg3 {[%clk 0:00:12.3]} 41... Ng4 {[%clk 0:00:34.3]} 42. Rd4 {[%clk 0:00:10.6]}
42... Ra1+ {[%clk 0:00:33.9]} 0-1

[Event "*** SCC Grand Prix: Titled Tuesday Blitz"]
[Site "Chess.com"]
[Date "2020.06.02"]
[Round "8"]
[White "FMOlexandrProhorov"]
[Black "Zmeeed63"]
[Result "1-0"]
[WhiteElo "2097"]
[BlackElo "2210"]
[TimeControl "180+1"]
[EndTime "11:36:48 PDT"]
[Termination "FMOlexandrProhorov won on time"]

1. e4 {[%clk 0:03:00.9]} 1... Nc6 {[%clk 0:02:59.6]} 2. d4 {[%clk 0:02:57.1]}
2... d5 {[%clk 0:02:59.4]} 3. Nc3 {[%clk 0:02:57]} 3... dxe4 {[%clk 0:02:58]} 4.
d5 {[%clk 0:02:57]} 4... Ne5 {[%clk 0:02:58.5]} 5. Bf4 {[%clk 0:02:57.2]} 5...
Ng6 {[%clk 0:02:58]} 6. Bg3 {[%clk 0:02:57.4]} 6... Nf6 {[%clk 0:02:58]} 7. Bc4
{[%clk 0:02:52.4]} 7... Bg4 {[%clk 0:02:49.1]} 8. f3 {[%clk 0:02:48.3]} 8...
exf3 {[%clk 0:02:50]} 9. Nxf3 {[%clk 0:02:48]} 9... c6 {[%clk 0:02:44.2]} 10.
O-O {[%clk 0:02:38.4]} 10... e6 {[%clk 0:01:44.9]} 11. dxe6 {[%clk 0:02:22.1]}
11... Bc5+ {[%clk 0:01:42.7]} 12. Kh1 {[%clk 0:02:21.7]} 12... fxe6 {[%clk
0:01:41.6]} 13. Qe1 {[%clk 0:02:15]} 13... O-O {[%clk 0:01:33.5]} 14. Bxe6+
{[%clk 0:02:13]} 14... Bxe6 {[%clk 0:01:34.4]} 15. Qxe6+ {[%clk 0:02:12.9]}
15... Kh8 {[%clk 0:01:34.7]} 16. Ng5 {[%clk 0:02:13.2]} 16... Qe7 {[%clk
0:01:30.3]} 17. Rae1 {[%clk 0:02:10.5]} 17... Qxe6 {[%clk 0:01:26.3]} 18. Nxe6
{[%clk 0:02:09.8]} 18... Bb4 {[%clk 0:01:19.1]} 19. Nxf8 {[%clk 0:02:09.2]}
19... Nxf8 {[%clk 0:01:20]} 20. Be5 {[%clk 0:02:08.1]} 20... Ng4 {[%clk
0:00:47.4]} 21. Re2 {[%clk 0:02:02.1]} 21... Ng6 {[%clk 0:00:38.6]} 22. Bd4
{[%clk 0:01:56]} 22... Bd6 {[%clk 0:00:28.6]} 23. h3 {[%clk 0:01:53.1]} 23...
Nh6 {[%clk 0:00:28.7]} 24. Ne4 {[%clk 0:01:51.8]} 24... Bc7 {[%clk 0:00:27.6]}
25. Ng5 {[%clk 0:01:47.6]} 25... Nh4 {[%clk 0:00:16.1]} 26. Nf7+ {[%clk
0:01:47.1]} 26... Nxf7 {[%clk 0:00:15.7]} 27. Rxf7 {[%clk 0:01:47.6]} 27... Nf5
{[%clk 0:00:05.2]} 28. Rxc7 {[%clk 0:01:38.6]} 28... Ng3+ {[%clk 0:00:04.5]} 29.
Kh2 {[%clk 0:01:34.7]} 29... Nxe2 {[%clk 0:00:05]} 30. Bxg7+ {[%clk 0:01:31.4]}
30... Kg8 {[%clk 0:00:04.9]} 31. c3 {[%clk 0:01:27.1]} 31... b6 {[%clk
0:00:02.8]} 32. Be5 {[%clk 0:01:21.5]} 32... c5 {[%clk 0:00:02.8]} 33. a4 {[%clk
0:01:20.8]} 33... Re8 {[%clk 0:00:02.2]} 34. Rg7+ {[%clk 0:01:14.8]} 34... Kf8
{[%clk 0:00:02]} 35. Rg5 {[%clk 0:01:15.7]} 35... Nc1 {[%clk 0:00:01.5]} 36.
Bd6+ {[%clk 0:01:15.3]} 36... Kf7 {[%clk 0:00:01.7]} 37. a5 {[%clk 0:01:13.2]}
37... Nb3 {[%clk 0:00:01.4]} 38. axb6 {[%clk 0:01:13.4]} 38... axb6 {[%clk
0:00:02.3]} 39. Bc7 {[%clk 0:01:13.1]} 39... Re6 {[%clk 0:00:02.8]} 40. Rf5+
{[%clk 0:01:12.4]} 40... Kg6 {[%clk 0:00:03.2]} 41. Rd5 {[%clk 0:01:11.2]} 41...
Nc1 {[%clk 0:00:03]} 42. Rd6 {[%clk 0:01:10.7]} 42... Rxd6 {[%clk 0:00:03.4]}
43. Bxd6 {[%clk 0:01:11]} 43... Nd3 {[%clk 0:00:04.3]} 44. b4 {[%clk 0:01:10]}
44... cxb4 {[%clk 0:00:05.2]} 45. cxb4 {[%clk 0:01:09.6]} 45... b5 {[%clk
0:00:05.6]} 46. Kg3 {[%clk 0:01:08.6]} 46... Kf5 {[%clk 0:00:06.5]} 47. Kf3
{[%clk 0:01:08.3]} 47... Ke6 {[%clk 0:00:06.9]} 48. Bf8 {[%clk 0:01:07.8]} 48...
Kf7 {[%clk 0:00:06.9]} 49. Bc5 {[%clk 0:01:08]} 49... Ke6 {[%clk 0:00:07.3]} 50.
Ke4 {[%clk 0:01:07.8]} 50... Ne1 {[%clk 0:00:07.7]} 51. g4 {[%clk 0:01:07.5]}
51... Ng2 {[%clk 0:00:07.3]} 52. Be3 {[%clk 0:01:03.9]} 52... Kd6 {[%clk
0:00:04.2]} 53. Bf4+ {[%clk 0:01:01.4]} 53... Ke6 {[%clk 0:00:03.9]} 54. Bg3
{[%clk 0:00:58.1]} 54... Kf6 {[%clk 0:00:01.8]} 55. Kf3 {[%clk 0:00:57.7]} 1-0

[Event "*** SCC Grand Prix: Titled Tuesday Blitz"]
[Site "Chess.com"]
[Date "2020.06.02"]
[Round "8"]
[White "GMaka"]
[Black "Artem_Sadovsky"]
[Result "0-1"]
[WhiteElo "2360"]
[BlackElo "2533"]
[TimeControl "180+1"]
[EndTime "11:36:50 PDT"]
[Termination "Artem_Sadovsky won on time"]

1. d4 {[%clk 0:03:00.9]} 1... g6 {[%clk 0:02:54.9]} 2. Nc3 {[%clk 0:02:56.2]}
2... Bg7 {[%clk 0:02:55.8]} 3. Bf4 {[%clk 0:02:54.6]} 3... d6 {[%clk 0:02:55.8]}
4. h4 {[%clk 0:02:53.2]} 4... e5 {[%clk 0:02:55.4]} 5. dxe5 {[%clk 0:02:52.9]}
5... dxe5 {[%clk 0:02:56.3]} 6. Qxd8+ {[%clk 0:02:53]} 6... Kxd8 {[%clk
0:02:57.2]} 7. O-O-O+ {[%clk 0:02:52.9]} 7... Nd7 {[%clk 0:02:57]} 8. Bd2 {[%clk
0:02:44.2]} 8... Bh6 {[%clk 0:02:54.3]} 9. h5 {[%clk 0:02:43.3]} 9... Bxd2+
{[%clk 0:02:53.8]} 10. Rxd2 {[%clk 0:02:44.2]} 10... g5 {[%clk 0:02:54.7]} 11.
g4 {[%clk 0:02:33.8]} 11... f6 {[%clk 0:02:39.5]} 12. e4 {[%clk 0:02:29.9]}
12... Nh6 {[%clk 0:02:37.4]} 13. f3 {[%clk 0:02:29.7]} 13... c6 {[%clk
0:02:37.1]} 14. Nge2 {[%clk 0:02:29.2]} 14... Ke7 {[%clk 0:02:33]} 15. Ng3
{[%clk 0:02:29.4]} 15... a5 {[%clk 0:02:31.3]} 16. a4 {[%clk 0:02:27.4]} 16...
Nc5 {[%clk 0:02:31.5]} 17. Bc4 {[%clk 0:02:26.7]} 17... Rd8 {[%clk 0:02:27.6]}
18. Rxd8 {[%clk 0:02:24.3]} 18... Kxd8 {[%clk 0:02:28.5]} 19. Nf5 {[%clk
0:02:19.2]} 19... Bxf5 {[%clk 0:02:28]} 20. exf5 {[%clk 0:02:18.4]} 20... Ke7
{[%clk 0:02:22.6]} 21. Rd1 {[%clk 0:02:12.5]} 21... Rd8 {[%clk 0:02:15.4]} 22.
Rxd8 {[%clk 0:02:04.4]} 22... Kxd8 {[%clk 0:02:16.3]} 23. Kd2 {[%clk 0:02:04.6]}
23... e4 {[%clk 0:02:11.9]} 24. Ke3 {[%clk 0:02:01.2]} 24... exf3 {[%clk
0:02:11.7]} 25. Kxf3 {[%clk 0:02:02.1]} 25... Nd7 {[%clk 0:02:10.2]} 26. Be2
{[%clk 0:01:58.3]} 26... Ne5+ {[%clk 0:02:10.5]} 27. Kg3 {[%clk 0:01:58.8]}
27... Ke7 {[%clk 0:02:07.7]} 28. Ne4 {[%clk 0:01:55.4]} 28... b6 {[%clk
0:02:02.9]} 29. c3 {[%clk 0:01:54.7]} 29... Nhf7 {[%clk 0:02:03]} 30. b4 {[%clk
0:01:54.2]} 30... Nd6 {[%clk 0:02:02.3]} 31. Nd2 {[%clk 0:00:58.1]} 31... Nd7
{[%clk 0:01:42.2]} 32. bxa5 {[%clk 0:00:48.6]} 32... bxa5 {[%clk 0:01:43.1]} 33.
Nb3 {[%clk 0:00:49.3]} 33... Ne4+ {[%clk 0:01:39.9]} 34. Kh3 {[%clk 0:00:42.4]}
34... Nxc3 {[%clk 0:01:38.3]} 35. Bc4 {[%clk 0:00:42.8]} 35... Ne5 {[%clk
0:01:24.4]} 36. Nxa5 {[%clk 0:00:26]} 36... Nxa4 {[%clk 0:01:23.8]} 37. Nxc6+
{[%clk 0:00:23.1]} 37... Nxc6 {[%clk 0:01:23.6]} 38. Bb5 {[%clk 0:00:24]} 38...
Nc3 {[%clk 0:01:17.5]} 39. Bxc6 {[%clk 0:00:24]} 39... Kd6 {[%clk 0:01:18.4]}
40. Be8 {[%clk 0:00:18.3]} 40... h6 {[%clk 0:01:19.3]} 41. Bf7 {[%clk
0:00:14.2]} 41... Ke5 {[%clk 0:01:20.2]} 42. Bb3 {[%clk 0:00:13.3]} 42... Kf4
{[%clk 0:01:20.3]} 43. Bc2 {[%clk 0:00:13.3]} 43... Ne4 {[%clk 0:01:20.2]} 44.
Kg2 {[%clk 0:00:05.7]} 44... Nc3 {[%clk 0:01:16.2]} 45. Kh3 {[%clk 0:00:04.5]}
45... Kf3 {[%clk 0:01:16.1]} 46. Bb3 {[%clk 0:00:02.9]} 46... Kf2 {[%clk
0:01:16.4]} 47. Kh2 {[%clk 0:00:02.6]} 47... Ne2 {[%clk 0:01:15.4]} 48. Kh3
{[%clk 0:00:03.5]} 48... Nf4+ {[%clk 0:01:15.6]} 49. Kh2 {[%clk 0:00:04.2]}
49... Ng2 {[%clk 0:00:55.8]} 50. Kh3 {[%clk 0:00:05.1]} 50... Ne3 {[%clk
0:00:55]} 51. Ba4 {[%clk 0:00:03.8]} 51... Kf3 {[%clk 0:00:52.1]} 52. Bb3 {[%clk
0:00:02.2]} 52... Kf4 {[%clk 0:00:50.2]} 0-1

[Event "*** SCC Grand Prix: Titled Tuesday Blitz"]
[Site "Chess.com"]
[Date "2020.06.02"]
[Round "8"]
[White "grandcoach"]
[Black "Walter_White_Poland"]
[Result "1-0"]
[WhiteElo "2075"]
[BlackElo "2165"]
[TimeControl "180+1"]
[EndTime "11:36:50 PDT"]
[Termination "grandcoach won by checkmate"]

1. e4 {[%clk 0:03:00.9]} 1... e6 {[%clk 0:02:59.9]} 2. Nf3 {[%clk 0:02:56.2]}
2... d5 {[%clk 0:02:59.8]} 3. e5 {[%clk 0:02:56.6]} 3... c5 {[%clk 0:02:59.4]}
4. b4 {[%clk 0:02:57.2]} 4... c4 {[%clk 0:02:58.9]} 5. d4 {[%clk 0:02:45.3]}
5... Bxb4+ {[%clk 0:02:54.7]} 6. c3 {[%clk 0:02:43.5]} 6... Be7 {[%clk
0:02:52.6]} 7. h4 {[%clk 0:02:42.1]} 7... Na6 {[%clk 0:02:48.9]} 8. h5 {[%clk
0:02:40.2]} 8... Nh6 {[%clk 0:02:45.1]} 9. a4 {[%clk 0:02:29]} 9... Nf5 {[%clk
0:02:37.4]} 10. g4 {[%clk 0:02:20.2]} 10... Nh4 {[%clk 0:02:33.5]} 11. Nxh4
{[%clk 0:02:16.1]} 11... Bxh4 {[%clk 0:02:32.3]} 12. h6 {[%clk 0:02:11.4]} 12...
g6 {[%clk 0:02:20.1]} 13. Qd2 {[%clk 0:02:07.5]} 13... Be7 {[%clk 0:02:10.6]}
14. Na3 {[%clk 0:01:44.9]} 14... Nc7 {[%clk 0:01:51.8]} 15. f4 {[%clk
0:01:36.4]} 15... O-O {[%clk 0:01:42]} 16. Bh3 {[%clk 0:01:26.5]} 16... f6
{[%clk 0:01:22.8]} 17. Nc2 {[%clk 0:01:05]} 17... b5 {[%clk 0:00:53.3]} 18. Ne3
{[%clk 0:01:00.1]} 18... fxe5 {[%clk 0:00:48]} 19. fxe5 {[%clk 0:00:53.7]} 19...
Bh4+ {[%clk 0:00:41.6]} 20. Kd1 {[%clk 0:00:49]} 20... Rf2 {[%clk 0:00:34.8]}
21. Qe1 {[%clk 0:00:47]} 21... Ra2 {[%clk 0:00:13.8]} 22. Rxa2 {[%clk
0:00:45.8]} 22... Bxe1 {[%clk 0:00:13.8]} 23. Kxe1 {[%clk 0:00:46.4]} 23... bxa4
{[%clk 0:00:12.9]} 24. Ba3 {[%clk 0:00:40.1]} 24... Rb8 {[%clk 0:00:11.5]} 25.
Ke2 {[%clk 0:00:33.7]} 25... Qh4 {[%clk 0:00:08.4]} 26. Rf1 {[%clk 0:00:32.4]}
26... Bd7 {[%clk 0:00:05.4]} 27. Rb2 {[%clk 0:00:29.8]} 27... Nb5 {[%clk
0:00:02.4]} 28. Bg2 {[%clk 0:00:23.5]} 28... Nxc3+ {[%clk 0:00:01.9]} 29. Kd2
{[%clk 0:00:13.7]} 29... Rxb2+ {[%clk 0:00:02]} 30. Bxb2 {[%clk 0:00:13.7]}
30... Nb5 {[%clk 0:00:02.3]} 31. Nd1 {[%clk 0:00:08.6]} 31... a3 {[%clk
0:00:02.4]} 32. Bc1 {[%clk 0:00:07.2]} 32... Qh2 {[%clk 0:00:03]} 33. Ne3 {[%clk
0:00:06]} 33... c3+ {[%clk 0:00:02.5]} 34. Kc2 {[%clk 0:00:04.3]} 34... a2
{[%clk 0:00:02.8]} 35. Ba3 {[%clk 0:00:03]} 35... Qg3 {[%clk 0:00:02.5]} 36.
Rf8# {[%clk 0:00:02.1]} 1-0